bitfinex/quotes_ETHUSD_20241004
["timestamp","ask_amount","ask_price","bid_price","bid_amount"]
[1728043587875,12.32869504,2386.8,2386.5,0.15899537]
[1728043588319,8.13885504,2386.8,2386.5,0.15899537]
[1728043588515,0.8326,2386.9,2386.5,4.34921537]
[1728043588836,3.94907504,2387.0,2386.5,4.34921537]
[1728043588837,8.13847504,2387.0,2386.6,4.19005]
[1728043589000,8.13847504,2387.0,2386.7,0.15822504]
[1728043589491,4.1894,2387.0,2386.7,0.15822504]
[1728043589889,4.9804,2387.1,2386.7,4.34803504]
[1728043590091,8.13808504,2387.2,2386.8,4.18964]
[1728043590300,4.18919,2387.1,2386.8,4.18964]
[1728043590532,0.7801,2387.3,2386.9,0.15799534]
[1728043590695,4.18845,2387.6,2387.1,4.18905]
[1728043590892,8.91723504,2387.8,2387.3,4.18882]
[1728043591112,6.03967054,2387.8,2387.3,4.18882]
[1728043591418,10.22765054,2387.8,2387.4,4.34603115]
[1728043591589,4.18815,2387.7,2387.4,0.15739115]
[1728043592437,4.18848,2387.5,2387.4,0.15739115]
[1728043592583,4.18848,2387.5,2387.1,4.18906]
[1728043592773,4.18848,2387.5,2387.1,4.18904]
[1728043592979,4.18848,2387.5,2387.2,0.15746746]
[1728043593524,3.94907504,2387.6,2387.2,4.34646746]
[1728043594827,4.18823,2387.7,2387.3,4.18881]
[1728043595117,4.18823,2387.7,2387.4,0.15723786]
[1728043596028,4.1883,2387.6,2387.4,0.15723786]
[1728043596233,5.62978505,2387.7,2387.2,4.18888]
[1728043596416,4.18833,2387.6,2387.3,0.15737455]
[1728043596727,5.62978505,2387.7,2387.3,4.18875]
[1728043596918,4.1882,2387.7,2387.4,0.15725975]
[1728043597329,4.18838,2387.6,2387.4,0.15725975]
[1728043597516,4.18838,2387.6,2387.2,8.3778]
[1728043598042,4.18838,2387.6,2387.3,0.15737181]
[1728043598335,4.18817,2387.7,2387.3,4.18882]
[1728043598491,4.18817,2387.7,2387.4,0.15725702]
[1728043601036,4.1883,2387.6,2387.2,4.18898]
[1728043601397,5.0799245,2387.7,2387.3,4.34619181]
[1728043601822,0.8917345,2387.7,2387.3,0.15737181]
[1728043602135,4.18846,2387.6,2387.2,4.18894]
[1728043602323,4.18846,2387.6,2387.4,0.15708455]
[1728043602524,4.18846,2387.6,2387.3,0.15719935]
[1728043603030,4.18846,2387.6,2387.4,0.15708455]
[1728043603233,4.18846,2387.6,2387.2,4.18894]
[1728043603439,4.18846,2387.6,2387.3,0.15719935]
[1728043603684,5.0798945,2387.7,2387.3,4.18881]
[1728043603822,5.0798945,2387.7,2387.4,0.15708455]
[1728043604543,4.18835,2387.6,2387.4,0.15708455]
[1728043604944,5.0798945,2387.7,2387.3,4.18882]
[1728043605145,5.0798945,2387.7,2387.5,0.15696976]
[1728043605353,5.0798945,2387.7,2387.4,0.15708455]
[1728043605623,5.0798945,2387.7,2387.5,0.15696976]
[1728043605824,5.0798945,2387.7,2387.2,8.37787]
[1728043605825,4.1883,2387.6,2387.2,4.18893]
[1728043606138,4.1883,2387.6,2387.3,0.15719935]
[1728043606448,4.1883,2387.6,2387.2,4.18893]
[1728043606782,4.1883,2387.6,2387.3,0.15719935]
[1728043606928,4.18817,2387.7,2387.3,4.34591935]
[1728043607128,4.18817,2387.7,2387.3,4.18872]
[1728043607435,4.18817,2387.7,2387.4,0.90978455]
[1728043607659,8.91716504,2387.8,2387.4,5.09840455]
[1728043608539,3.94907504,2388.0,2387.5,4.18846]
[1728043608742,8.13669504,2388.0,2387.6,4.18823]
[1728043609065,8.13669504,2388.0,2387.6,4.3450713]
[1728043609562,4.18744,2388.1,2387.7,4.95912]
[1728043609779,4.18743,2388.1,2387.7,4.95912]
[1728043609922,4.18743,2388.1,2387.8,0.15661178]
[1728043610363,8.13647504,2388.2,2387.7,4.95908]
[1728043610364,8.13644504,2388.2,2387.7,4.95908]
[1728043610563,8.13644504,2388.2,2387.9,0.15646146]
[1728043610737,8.13644504,2388.2,2387.8,4.34443621]
[1728043610942,8.13644504,2388.2,2388.0,0.15634672]
[1728043611268,8.13644504,2388.2,2388.1,0.15623199]
[1728043611448,8.13644504,2388.2,2387.8,4.18786]
[1728043611667,4.18746,2388.1,2387.9,0.15646146]
[1728043611852,4.18746,2388.1,2387.7,5.454988]
[1728043612161,0.65661941,2388.4,2387.5,4.18834]
[1728043612162,0.7539,2387.9,2387.8,0.15657621]
[1728043612461,0.7539,2387.9,2387.5,4.97034]
[1728043612462,4.94176,2387.9,2387.5,4.97034]
[1728043612661,4.94176,2387.9,2387.6,0.15665525]
[1728043613850,4.18796,2387.8,2387.6,0.15665525]
[1728043615281,0.7539,2387.9,2387.6,0.15665525]
[1728043615483,3.94907504,2387.8,2387.6,0.15665525]
[1728043615773,4.18813,2387.7,2387.6,0.15665525]
[1728043616181,4.18846,2387.6,2387.2,4.18894]
[1728043616380,4.18848,2387.5,2387.2,4.18894]
[1728043616583,4.18848,2387.5,2387.3,0.15704612]
[1728043616770,8.13753504,2387.6,2387.3,0.15704612]
[1728043616953,8.13753504,2387.6,2387.2,4.18894]
[1728043617278,12.32600504,2387.6,2387.3,0.15704612]
[1728043617441,12.32600504,2387.6,2387.2,4.18894]
[1728043617645,12.32600504,2387.6,2387.3,0.15704612]
[1728043617646,8.13753504,2387.6,2387.3,0.15704612]
[1728043617843,8.13753504,2387.6,2387.2,8.37788]
[1728043618047,4.18846,2387.6,2387.3,0.15704612]
[1728043618264,4.1882,2387.7,2387.2,4.18894]
[1728043618466,4.18836,2387.6,2387.3,0.15704612]
[1728043618678,4.18836,2387.6,2387.2,4.18892]
[1728043618987,4.18836,2387.6,2387.3,0.1571419]
[1728043619367,4.18836,2387.6,2387.2,4.18892]
[1728043619549,4.18836,2387.6,2387.4,0.15707274]
[1728043619753,4.18836,2387.6,2387.3,0.15718754]
[1728043619954,4.18836,2387.6,2387.5,0.15695796]
[1728043620192,4.18836,2387.6,2387.4,0.15707274]
[1728043620397,4.18836,2387.6,2387.5,0.15695796]
[1728043620753,4.18836,2387.6,2387.2,4.18892]
[1728043621097,4.18836,2387.6,2387.3,0.44539391]
[1728043621291,4.18836,2387.6,2387.3,0.15718754]
[1728043621607,4.18836,2387.6,2387.2,4.18892]
[1728043621905,4.18836,2387.6,2387.3,0.6026095]
[1728043622194,4.18836,2387.6,2387.3,0.15718754]
[1728043622560,4.18836,2387.6,2387.2,4.18892]
[1728043622762,4.18836,2387.6,2387.4,0.15707274]
[1728043623066,4.18836,2387.6,2387.5,0.15695796]
[1728043623269,4.18836,2387.6,2387.2,4.18892]
[1728043623491,4.18836,2387.6,2387.3,0.15718754]
[1728043623692,4.18849,2387.5,2387.3,0.15718754]
[1728043624003,4.18849,2387.5,2387.1,9.61918]
[1728043624294,4.18849,2387.5,2387.1,10.581098]
[1728043624589,4.18849,2387.5,2387.2,0.15730234]
[1728043624797,4.96679,2387.5,2387.2,0.15730234]
[1728043625571,4.18883,2387.3,2387.2,0.15730234]
[1728043625952,0.7783,2387.2,2386.8,5.018]
[1728043626217,8.91641504,2387.2,2386.8,5.018]
[1728043626807,8.91641504,2387.2,2386.8,0.8283]
[1728043626808,3.94907504,2387.0,2386.8,0.8283]
[1728043626978,4.18936,2387.0,2386.8,0.8283]
[1728043627380,4.1892,2387.1,2386.8,0.8283]
[1728043628322,4.1892,2387.1,2386.8,5.018]
[1728043629478,4.1892,2387.1,2386.8,0.8283]
[1728043629820,4.72737504,2387.2,2386.8,5.01783]
[1728043629821,4.18907,2387.2,2386.8,5.01783]
[1728043630805,3.94907504,2387.4,2387.0,4.18934]
[1728043631015,4.18854,2387.5,2387.1,0.7878]
[1728043631319,4.18867,2387.4,2387.1,4.97698]
[1728043633513,4.18867,2387.4,2387.1,0.7878]
[1728043636583,4.1889,2387.3,2386.8,1.79456464]
[1728043636781,4.94613,2387.3,2387.2,0.15748027]
[1728043637019,4.18923,2387.1,2386.7,5.81796664]
[1728043637225,4.18923,2387.1,2386.7,5.81789664]
[1728043637464,4.94613,2387.3,2386.7,1.62808664]
[1728043637465,4.18939,2387.0,2386.7,1.62808664]
[1728043637637,4.18971,2386.8,2386.6,0.87378664]
[1728043638185,4.98008,2386.9,2386.6,0.87378664]
[1728043638627,4.18971,2386.8,2386.6,0.87378664]
[1728043638987,4.18971,2386.8,2386.5,0.87378664]
[1728043639231,4.18971,2386.8,2386.6,0.87378664]
[1728043639442,4.18971,2386.8,2386.5,0.87378664]
[1728043640814,4.18971,2386.8,2386.4,5.86840664]
[1728043642263,4.18971,2386.8,2386.4,4.99462]
[1728043642625,4.18971,2386.8,2386.4,9.18493]
[1728043643121,4.18971,2386.8,2386.4,4.99461]
[1728043644333,4.98013,2386.9,2386.5,4.19013]
[1728043645436,4.98013,2386.9,2386.5,8.3802]
[1728043645951,0.7905,2386.9,2386.6,4.19004]
[1728043648377,0.7905,2386.9,2386.7,4.18986]
[1728043648680,16.27905504,2387.4,2386.9,4.94721]
[1728043648895,4.62537371,2388.3,2386.6,4.19003]
[1728043648896,11.49796,2387.8,2387.3,4.18881]
[1728043649208,4.18796,2387.8,2387.4,4.18863]
[1728043649525,9.42983984,2387.8,2387.4,4.18863]
[1728043650140,4.18815,2387.7,2387.3,4.18881]
[1728043650594,4.18815,2387.7,2387.4,0.15731639]
[1728043651891,8.13722504,2387.7,2387.4,0.15731639]
[1728043654042,8.13755504,2387.5,2387.4,0.15731639]
[1728043654212,8.94115504,2387.5,2387.4,0.15731639]
[1728043654409,4.18948,2387.0,2386.7,0.8291]
[1728043654708,4.18953,2386.9,2386.8,0.15771787]
[1728043655046,8.13830504,2387.1,2386.7,5.01897]
[1728043655210,4.18923,2387.1,2386.8,0.15771787]
[1728043655612,4.18923,2387.1,2386.7,6.20030566]
[1728043655823,4.18923,2387.1,2386.9,0.15770157]
[1728043656030,4.18923,2387.1,2386.8,0.15781641]
[1728043656227,4.18923,2387.1,2387.0,0.15758674]
[1728043656437,4.18923,2387.1,2386.9,0.15770157]
[1728043656641,4.18923,2387.1,2387.0,0.15758674]
[1728043657011,4.18923,2387.1,2386.7,6.20030566]
[1728043657210,4.18923,2387.1,2387.0,0.15758674]
[1728043657456,4.18923,2387.1,2386.7,5.89275664]
[1728043657609,4.18923,2387.1,2387.0,0.15758674]
[1728043658181,4.18923,2387.1,2386.7,5.01897]
[1728043658511,4.18923,2387.1,2386.8,0.15781641]
[1728043658711,4.18923,2387.1,2386.7,5.01897]
[1728043658936,4.18923,2387.1,2386.8,0.15781641]
[1728043659307,4.18923,2387.1,2386.7,5.01897]
[1728043659510,4.18923,2387.1,2386.8,0.15781641]
[1728043659710,4.18923,2387.1,2386.7,5.01897]
[1728043659949,4.18923,2387.1,2386.8,0.15781641]
[1728043660328,4.18923,2387.1,2386.7,0.8291]
[1728043660548,4.18916,2387.2,2386.9,0.15770157]
[1728043660750,4.18916,2387.2,2386.7,5.01891]
[1728043660751,8.37834,2387.2,2386.8,0.15781641]
[1728043660958,8.37834,2387.2,2387.0,0.15758674]
[1728043661157,4.18918,2387.1,2386.9,0.15770157]
[1728043661449,4.18918,2387.1,2386.7,5.01891]
[1728043661820,4.18938,2387.0,2386.7,0.8291]
[1728043662739,4.9972,2387.1,2386.7,5.01889]
[1728043662955,4.9972,2387.1,2386.5,2.09348664]
[1728043663123,4.1889,2387.3,2386.9,4.18946]
[1728043663459,11.49861,2387.5,2387.0,0.7998]
[1728043663750,11.49861,2387.5,2387.0,4.98908]
[1728043663751,4.18872,2387.4,2387.0,4.98908]
[1728043666819,4.18872,2387.4,2387.1,0.1576471]
[1728043673653,6.01232243,2387.4,2387.1,0.1576471]
[1728043674031,10.20110243,2387.4,2387.1,0.1576471]
[1728043674635,6.01232243,2387.4,2387.1,0.1576471]
[1728043677264,1.82360243,2387.4,2387.1,4.3467471]
[1728043678159,4.18819,2387.7,2387.3,5.00686]
[1728043678469,9.01163243,2387.8,2387.4,4.18858]
[1728043678660,4.18803,2387.8,2387.4,8.53420095]
[1728043678879,6.01163243,2387.8,2387.4,9.3912927]
[1728043679462,6.01163243,2387.8,2387.4,5.2027127]
[1728043680586,4.18813,2387.7,2387.4,5.2027127]
[1728043681706,1.82360243,2387.6,2387.4,1.0141727]
[1728043681905,1.82360243,2387.6,2387.4,0.15708095]
[1728043684399,1.82360243,2387.6,2387.4,4.34571095]
[1728043684697,1.82360243,2387.6,2387.4,0.15708095]
[1728043685124,6.01192243,2387.6,2387.4,0.15708095]
[1728043685408,6.01192243,2387.6,2387.3,0.8181]
[1728043685565,1.82360243,2387.6,2387.3,5.0069]
[1728043685966,1.82360243,2387.6,2387.4,0.15693775]
[1728043687180,1.82360243,2387.6,2387.4,4.34558775]
[1728043689517,1.82360243,2387.8,2387.5,4.18845]
[1728043689728,1.82360243,2387.8,2387.6,0.15670818]
[1728043691794,4.18751,2388.1,2387.7,5.01065]
[1728043692009,8.37432,2388.3,2387.8,4.18786]
[1728043692332,1.82360243,2388.3,2387.8,8.53210563]
[1728043692482,4.18726,2388.2,2387.9,4.18776]
[1728043692679,6.01075243,2388.3,2388.0,0.15615614]
[1728043692995,4.18742,2388.1,2388.0,0.15615614]
[1728043693197,6.01102243,2388.1,2388.0,0.15615614]
[1728043693412,6.01102243,2388.1,2387.7,5.01071]
[1728043693717,6.01102243,2388.1,2388.0,0.15615614]
[1728043694718,5.02037,2388.0,2387.6,4.1882]
[1728043694929,1.82360243,2387.8,2387.5,0.8137]
[1728043695080,1.82360243,2387.8,2387.3,0.8137]
[1728043695081,1.82360243,2387.6,2387.3,0.8137]
[1728043695281,6.01203243,2387.6,2387.3,0.8137]
[1728043695526,6.01232243,2387.4,2387.1,1.68979153]
[1728043695727,6.01232243,2387.4,2387.1,0.8137]
[1728043696529,1.82360243,2387.4,2387.1,0.8137]
[1728043696883,1.82360243,2387.4,2387.2,0.15698675]
[1728043697616,4.18849,2387.5,2387.2,0.15698675]
[1728043701418,4.18866,2387.4,2387.2,0.15698675]
[1728043701630,4.18851,2387.5,2387.2,0.15698675]
[1728043703832,8.37714,2387.5,2387.2,0.15698675]
[1728043704144,4.18851,2387.5,2387.2,0.15698675]
[1728043707622,4.78397313,2387.6,2387.2,0.15698675]
[1728043707826,8.97231313,2387.6,2387.2,4.34591675]
[1728043708198,4.18796,2387.8,2387.3,0.8]
[1728043708396,4.18796,2387.8,2387.2,4.34595675]
[1728043708397,4.1883,2387.7,2387.2,4.34595675]
[1728043708735,5.01488,2387.5,2387.4,0.15678179]
[1728043709034,4.18865,2387.4,2387.0,5.06539153]
[1728043709622,4.18865,2387.4,2387.0,4.1893]
[1728043711130,5.01565,2387.1,2386.8,0.87609153]
[1728043711444,9.20494,2387.1,2386.7,5.4097]
[1728043711607,5.01565,2387.1,2386.7,5.4097]
[1728043711930,9.20496,2387.1,2386.8,0.1576732]
[1728043712137,6.33127331,2387.1,2386.8,0.1576732]
[1728043712306,4.18936,2387.0,2386.7,0.4199]
[1728043712656,4.18936,2387.0,2386.8,0.1576732]
[1728043712792,4.18936,2387.0,2386.7,0.4199]
[1728043712997,2.14202331,2387.1,2386.9,0.15755836]
[1728043713372,6.33122331,2387.1,2386.7,4.60976]
[1728043713634,5.0156,2387.1,2387.0,0.15744352]
[1728043713797,5.0156,2387.1,2386.7,4.60976]
[1728043713992,5.0156,2387.1,2387.0,0.15744352]
[1728043714332,8.14031313,2387.2,2386.7,4.60976]
[1728043714333,12.32941313,2387.2,2386.7,4.60976]
[1728043714539,4.18918,2387.1,2387.0,0.15741482]
[1728043714828,5.50476131,2387.1,2387.0,0.15741482]
[1728043715035,5.50476131,2387.1,2386.7,4.60976]
[1728043715245,5.50476131,2387.1,2387.0,0.15741482]
[1728043715738,5.50476131,2387.1,2386.7,4.60976]
[1728043715896,5.50476131,2387.1,2387.0,0.15741482]
[1728043716096,5.50476131,2387.1,2386.7,4.60976]
[1728043716312,5.50476131,2387.1,2387.0,0.15741482]
[1728043716540,5.50476131,2387.1,2386.7,4.60976]
[1728043716749,5.50476131,2387.1,2387.0,0.15741482]
[1728043717273,5.50476131,2387.1,2386.7,4.18986]
[1728043717472,5.50476131,2387.1,2387.0,0.15741482]
[1728043717625,5.50476131,2387.1,2386.7,4.18986]
[1728043717829,5.50476131,2387.1,2387.0,0.15737148]
[1728043718151,5.50476131,2387.1,2386.7,4.18986]
[1728043718634,5.50476131,2387.1,2386.8,0.15760116]
[1728043718968,5.50476131,2387.1,2386.7,4.18986]
[1728043719171,5.50476131,2387.1,2386.9,0.15748631]
[1728043719375,5.50476131,2387.1,2386.8,0.15760116]
[1728043719678,5.50476131,2387.1,2387.0,0.15737148]
[1728043719845,5.50476131,2387.1,2386.9,0.15748631]
[1728043720025,5.50476131,2387.1,2386.7,4.18986]
[1728043720230,5.50476131,2387.1,2387.0,0.15737148]
[1728043720425,5.50476131,2387.1,2386.7,4.18986]
[1728043720643,5.50476131,2387.1,2387.0,0.15737148]
[1728043720933,5.50476131,2387.1,2386.7,4.18986]
[1728043721130,5.50476131,2387.1,2386.6,4.18996]
[1728043721439,0.7552,2386.9,2386.7,0.15771601]
[1728043721648,4.94482,2386.9,2386.5,5.4023]
[1728043721830,4.94482,2386.9,2386.8,0.15776815]
[1728043722034,4.94482,2386.9,2386.5,5.4023]
[1728043722234,4.94482,2386.9,2386.8,0.15778457]
[1728043722460,6.04065832,2386.9,2386.8,0.15778457]
[1728043722648,4.18976,2386.8,2386.5,1.2121]
[1728043722858,6.04060832,2386.9,2386.5,5.40225]
[1728043723061,4.18973,2386.8,2386.5,1.2121]
[1728043723432,6.04060832,2386.9,2386.5,1.2121]
[1728043723672,6.04060832,2386.9,2386.5,5.40225]
[1728043723866,4.18978,2386.8,2386.5,1.2121]
[1728043726243,5.39522515,2386.8,2386.5,1.2121]
[1728043726881,5.39522515,2386.8,2386.6,0.15805263]
[1728043729410,4.94477,2386.9,2386.6,0.15805263]
[1728043729750,4.18971,2386.8,2386.6,0.15805263]
[1728043730155,4.94477,2386.9,2386.6,0.15805263]
[1728043730448,4.94476,2386.9,2386.6,0.15805263]
[1728043730661,4.18956,2386.9,2386.6,0.15805263]
[1728043731393,3.0,2387.4,2386.9,1.2382]
[1728043731599,7.18876,2387.4,2387.0,4.18928]
[1728043731823,7.18876,2387.4,2387.0,4.60918]
[1728043732023,7.18876,2387.4,2387.0,4.76669655]
[1728043732159,4.18876,2387.4,2387.0,4.76669655]
[1728043732355,6.01282319,2387.4,2387.0,4.76669655]
[1728043734905,10.20165319,2387.4,2387.0,4.76669655]
[1728043735107,4.1889,2387.3,2387.0,0.57741655]
[1728043738411,0.7707,2387.6,2387.0,5.32517221]
[1728043738577,7.31,2387.8,2387.1,0.8218]
[1728043738578,4.1887,2387.4,2387.1,0.8218]
[1728043738771,4.1889,2387.3,2387.1,0.8218]
[1728043739111,4.1889,2387.3,2387.2,0.15728691]
[1728043739711,7.89806951,2387.3,2387.2,0.15728691]
[1728043739890,4.18941,2387.0,2386.7,0.7892]
[1728043740209,8.37888,2387.0,2386.7,0.7892]
[1728043740414,4.18941,2387.0,2386.7,0.7892]
[1728043740586,4.18961,2386.9,2386.7,0.7892]
[1728043741310,4.18961,2386.9,2386.5,5.84340153]
[1728043741517,6.01367319,2386.9,2386.5,5.84340153]
[1728043741743,6.79827319,2386.9,2386.5,4.96731]
[1728043742013,6.79827319,2386.9,2386.6,0.15774241]
[1728043742416,6.01394319,2386.7,2386.6,0.15774241]
[1728043742616,6.01394319,2386.7,2386.3,0.7948]
[1728043742919,4.19024,2386.5,2386.3,0.7948]
[1728043744110,4.1902,2386.6,2386.3,0.7948]
[1728043744503,4.19049,2386.4,2386.0,4.191]
[1728043746406,6.77427319,2386.5,2385.9,6.69728391]
[1728043747027,6.77427319,2386.5,2386.2,0.87743695]
[1728043747233,6.77427319,2386.5,2385.9,4.94241]
[1728043747535,4.19051,2386.4,2386.0,4.19103]
[1728043747736,6.77427319,2386.5,2386.1,4.1909]
[1728043748047,7.93143069,2386.5,2386.1,4.1909]
[1728043749021,7.93143069,2386.5,2386.0,8.38198]
[1728043749540,7.93143069,2386.5,2386.0,4.19095]
[1728043749835,4.19051,2386.4,2386.0,4.19095]
[1728043750714,7.93142069,2386.5,2386.1,4.19093]
[1728043750903,1.21214907,2386.4,2386.1,4.19093]
[1728043751400,5.40262907,2386.4,2386.0,8.38208]
[1728043751899,1.21214907,2386.4,2386.0,8.38208]
[1728043752301,1.21214907,2386.4,2386.0,8.38204]
[1728043752529,1.21214907,2386.4,2386.1,4.1909]
[1728043753302,6.77426319,2386.5,2386.1,4.1909]
[1728043753706,6.77426319,2386.5,2386.0,4.19101]
[1728043753901,4.19048,2386.4,2386.0,4.19101]
[1728043755750,4.19048,2386.4,2385.9,0.7512]
[1728043755951,2.58396319,2386.5,2385.7,5.38862]
[1728043755952,5.01115,2386.1,2385.7,5.38862]
[1728043756158,6.83521319,2386.1,2385.8,0.87779739]
[1728043756720,6.83521319,2386.1,2385.9,0.15378128]
[1728043757363,5.01105,2386.1,2385.9,0.15378128]
[1728043757659,0.501105,2386.0,2385.9,0.15378128]
[1728043761560,0.501105,2386.0,2385.7,4.61153]
[1728043761767,0.501105,2386.0,2385.9,0.15378128]
[1728043761930,0.501105,2386.0,2385.7,4.61153]
[1728043761931,0.501105,2386.0,2385.8,0.15389622]
[1728043762133,0.7703,2386.3,2385.9,4.34496128]
[1728043762450,4.96097,2386.3,2385.9,4.34496128]
[1728043763176,4.96097,2386.3,2385.9,0.15378128]
[1728043763479,4.19078,2386.2,2385.9,0.15378128]
[1728043763828,0.7703,2386.3,2385.9,0.15378128]
[1728043764034,0.28527595,2386.2,2385.9,4.34498128]
[1728043764383,4.47603595,2386.2,2385.9,4.34498128]
[1728043764885,0.28527595,2386.2,2385.9,4.34498128]
[1728043765634,4.47604595,2386.2,2385.9,0.15378128]
[1728043765834,0.28527595,2386.2,2385.9,4.34505128]
[1728043766276,0.28527595,2386.2,2385.9,4.34506128]
[1728043766480,0.28527595,2386.2,2385.9,0.15378128]
[1728043766675,4.47603595,2386.2,2385.9,0.15378128]
[1728043766891,4.47603595,2386.2,2385.9,4.34504128]
[1728043769163,0.28527595,2386.2,2385.9,4.34504128]
[1728043769362,4.96092,2386.3,2385.9,4.34504128]
[1728043771297,4.19077,2386.2,2385.9,4.34504128]
[1728043771586,4.19077,2386.2,2385.9,0.15378128]
[1728043780871,4.19077,2386.2,2385.9,4.34507128]
[1728043781416,4.19084,2386.2,2385.9,0.15378128]
[1728043782487,4.84550499,2386.2,2385.9,0.15378128]
[1728043785577,4.84550499,2386.2,2385.9,1.03157867]
[1728043792036,4.19094,2386.1,2385.9,1.03157867]
[1728043794435,4.84549499,2386.2,2385.9,1.03157867]
[1728043798868,7.31,2386.5,2386.0,0.8025]
[1728043799001,7.31,2386.5,2386.1,4.63671702]
[1728043799204,11.50033,2386.5,2386.2,0.8025]
[1728043799503,11.50033,2386.5,2386.2,1.83380184]
[1728043800503,11.50033,2386.5,2386.2,0.95600445]
[1728043800698,1.569046,2386.4,2386.2,1.83380184]
[1728043800903,4.19058,2386.3,2386.2,1.03130184]
[1728043801130,4.19058,2386.3,2386.2,0.15350445]
[1728043801326,4.19058,2386.3,2386.0,1.67659739]
[1728043801497,4.19058,2386.3,2386.2,0.15343379]
[1728043801701,6.18021292,2386.3,2386.0,1.67659739]
[1728043801942,6.18021292,2386.3,2386.2,0.15343379]
[1728043802240,9.13406319,2386.5,2386.0,5.86768739]
[1728043802542,16.47964,2386.9,2386.5,0.8123]
[1728043802543,4.18977,2386.8,2386.5,0.8123]
[1728043802851,4.18989,2386.7,2386.5,0.8123]
[1728043803047,4.18974,2386.8,2386.6,0.1528368]
[1728043803214,5.29272932,2386.8,2386.6,0.1528368]
[1728043804848,1.10298932,2386.8,2386.6,0.1528368]
[1728043805016,5.01603,2387.0,2386.6,0.1528368]
[1728043805225,4.18959,2386.9,2386.6,0.1528368]
[1728043805923,6.01344319,2387.0,2386.6,4.3428168]
[1728043806125,6.01348319,2387.0,2386.6,4.3428168]
[1728043807214,4.18953,2386.9,2386.6,0.1528368]
[1728043807910,6.01348319,2387.0,2386.6,4.3428568]
[1728043808262,4.84611583,2387.1,2386.6,4.3428568]
[1728043808438,6.67017902,2387.1,2386.7,4.18983]
[1728043808641,6.67017902,2387.1,2386.6,4.3428568]
[1728043808642,4.18949,2387.0,2386.6,4.3428568]
[1728043808957,8.37897,2387.0,2386.8,0.15252286]
[1728043809127,4.18955,2386.9,2386.7,0.15263771]
[1728043809333,4.18955,2386.9,2386.5,5.00248]
[1728043809551,4.18955,2386.9,2386.8,0.15252286]
[1728043809861,4.18955,2386.9,2386.5,5.00248]
[1728043810150,4.18955,2386.9,2386.8,0.15252286]
[1728043810361,4.18955,2386.9,2386.5,5.00248]
[1728043810632,4.18948,2387.0,2386.8,0.15252286]
[1728043810769,9.26902689,2387.0,2386.6,4.19004]
[1728043811110,8.37894,2387.0,2386.6,4.19004]
[1728043811270,8.37894,2387.0,2386.7,0.15263771]
[1728043812217,4.18953,2386.9,2386.7,0.15263771]
[1728043813086,4.1894,2387.0,2386.7,0.15263771]
[1728043814023,8.37893,2387.0,2386.7,0.15263771]
[1728043814189,6.01359319,2386.9,2386.7,0.15263771]
[1728043814506,4.19008,2386.6,2386.3,0.7971]
[1728043814711,6.01414319,2386.6,2386.3,0.7971]
[1728043814917,10.20430319,2386.6,2386.3,0.7971]
[1728043815077,4.19041,2386.4,2386.0,4.19108]
[1728043815509,4.19041,2386.4,2385.9,4.98834]
[1728043815874,8.38094,2386.4,2386.0,4.19111]
[1728043816184,8.38094,2386.4,2385.9,4.98829]
[1728043816185,4.19062,2386.3,2385.9,4.98829]
[1728043816591,0.8038,2386.6,2385.9,1.217]
[1728043816786,4.99393,2386.6,2386.2,0.7573]
[1728043816988,4.99393,2386.6,2386.2,4.94805]
[1728043817189,4.99393,2386.6,2386.3,0.1529641]
[1728043817374,6.09472632,2386.6,2386.3,0.1529641]
[1728043817713,6.09472632,2386.6,2386.4,0.15284921]
[1728043817918,6.09472632,2386.6,2386.2,4.94805]
[1728043818072,6.09472632,2386.6,2386.5,0.15273433]
[1728043818269,6.09472632,2386.6,2386.2,4.94805]
[1728043818499,6.09472632,2386.6,2386.5,0.15273433]
[1728043818777,6.09472632,2386.6,2386.2,4.94805]
[1728043818994,6.09472632,2386.6,2386.5,0.15273433]
[1728043819175,4.19024,2386.5,2386.1,4.19089]
[1728043819615,4.19024,2386.5,2386.2,4.19075]
[1728043819819,4.19024,2386.5,2386.1,4.19089]
[1728043821576,6.09470632,2386.6,2386.2,4.19075]
[1728043824281,4.99391,2386.6,2386.2,4.19075]
[1728043826876,7.31,2387.0,2386.0,1.2325]
[1728043826877,0.764,2386.8,2386.3,0.7884]
[1728043827083,7.31,2387.0,2386.7,4.18988]
[1728043827084,11.49948,2387.0,2386.7,4.18988]
[1728043827485,7.31,2387.0,2386.7,4.18988]
[1728043828797,7.31,2387.0,2386.6,4.97836]
[1728043828798,7.31,2387.0,2386.6,0.7884]
[1728043828980,11.49936,2387.0,2386.6,9.16837]
[1728043829393,4.18936,2387.0,2386.6,9.16837]
[1728043829592,4.18936,2387.0,2386.6,4.97838]
[1728043829825,4.95327,2387.1,2386.7,4.18988]
[1728043830019,4.18927,2387.1,2386.7,4.18988]
[1728043830190,6.01308319,2387.2,2386.8,4.18963]
[1728043830398,7.91118632,2387.2,2386.8,4.18963]
[1728043831193,12.10036632,2387.2,2386.8,4.18963]
[1728043831397,12.10036632,2387.2,2386.7,8.37962]
[1728043831398,4.1892,2387.1,2386.7,8.37962]
[1728043831598,6.01316319,2387.2,2386.8,4.18967]
[1728043831798,6.01316319,2387.2,2386.8,4.34214667]
[1728043832220,4.18919,2387.1,2386.8,0.2284888]
[1728043832607,4.18919,2387.1,2386.7,8.37955]
[1728043832827,4.18919,2387.1,2386.9,0.22838016]
[1728043833028,4.18919,2387.1,2386.8,0.22849819]
[1728043833227,4.18919,2387.1,2387.0,0.22826213]
[1728043833526,5.29063532,2387.1,2387.0,0.22826213]
[1728043833736,5.29063532,2387.1,2386.6,0.7884]
[1728043833737,0.7801,2387.0,2386.6,0.7884]
[1728043834046,4.18954,2386.9,2386.6,0.7884]
[1728043834536,2.60416319,2387.0,2386.6,0.7884]
[1728043834737,6.79353319,2387.0,2386.6,4.97836]
[1728043835041,6.01307319,2387.2,2386.8,4.18963]
[1728043835802,6.01307319,2387.2,2386.6,0.7884]
[1728043836044,4.1892,2387.1,2386.7,4.18984]
[1728043836345,6.01307319,2387.2,2386.8,4.1897]
[1728043837231,6.01307319,2387.2,2386.6,4.97846]
[1728043837232,0.7601,2387.0,2386.6,0.7884]
[1728043837462,6.77359319,2387.0,2386.6,4.97845]